fUST/lending_fUST_20250408
["ID","MTS","AMOUNT","RATE_DAILY","PERIOD"]
[357435416,1744066268835,-500.0,0.00024931,2]
[357435418,1744066268844,-500.0,0.00024931,2]
[357435419,1744066268853,-968.29,0.00024931,2]
[357435421,1744066268863,-500.0,0.00024931,2]
[357435423,1744066268872,-564.44,0.00024931,2]
[357435424,1744066268883,-500.0,0.00024931,2]
[357435426,1744066268895,-1613.95,0.00024931,2]
[357435427,1744066268905,-500.0,0.00024931,2]
[357435429,1744066268915,-2461.22,0.00024931,2]
[357435431,1744066268924,-500.0,0.00024931,2]
[357435432,1744066268935,-873.55,0.00024931,2]
[357435434,1744066268944,-2674.77,0.00024931,2]
[357435436,1744066268954,-500.0,0.00024931,2]
[357435437,1744066268965,-631.6,0.00024931,2]
[357435439,1744066268974,-1394.78,0.00024931,2]
[357435441,1744066268984,-181.0615083,0.00024931,2]
[357435442,1744066268994,-500.0,0.00024931,2]
[357435444,1744066269003,-500.0,0.00024931,2]
[357435445,1744066269012,-671.63,0.00024931,2]
[357435447,1744066269021,-500.0,0.00024931,2]
[357435449,1744066269032,-500.0,0.00024931,2]
[357435450,1744066269042,-522.49,0.00024931,2]
[357435452,1744066269051,-1447.86,0.00024931,2]
[357435453,1744066269060,-3581.51,0.00024931,2]
[357435455,1744066269070,-500.0,0.00024931,2]
[357435456,1744066269080,-500.0,0.00024931,2]
[357435458,1744066269089,-500.0,0.00024931,2]
[357435460,1744066269099,-2777.14,0.00024931,2]
[357435461,1744066269110,-1349.66,0.00024931,2]
[357435463,1744066269119,-1293.9,0.00024931,2]
[357435465,1744066269130,-6741.73,0.00024931,2]
[357435466,1744066269139,-2029.31,0.00024931,2]
[357435468,1744066269148,-576.67,0.00024931,2]
[357435469,1744066269158,-1982.66,0.00024931,2]
[357435471,1744066269168,-500.0,0.00024931,2]
[357435473,1744066269178,-537.39,0.00024931,2]
[357435474,1744066269187,-500.0,0.00024931,2]
[357435476,1744066269196,-500.0,0.00024931,2]
[357435478,1744066269206,-500.0,0.00024931,2]
[357435479,1744066269215,-509.12,0.00024931,2]
[357435481,1744066269225,-500.0,0.00024931,2]
[357435483,1744066269234,-500.0,0.00024931,2]
[357435484,1744066269243,-2790.26,0.00024931,2]
[357435486,1744066269253,-500.0,0.00024931,2]
[357435488,1744066269264,-623.33,0.00024931,2]
[357435489,1744066269274,-500.0,0.00024931,2]
[357435491,1744066269283,-500.0,0.00024931,2]
[357435493,1744066269292,-957.01,0.00024931,2]
[357435494,1744066269302,-500.0,0.00024931,2]
[357435496,1744066269312,-1926.98,0.00024931,2]
[357435498,1744066269321,-2184.29,0.00024931,2]
[357435499,1744066269330,-500.0,0.00024931,2]
[357435501,1744066269339,-2175.04,0.00024931,2]
[357435502,1744066269349,-756.45,0.00024931,2]
[357435504,1744066269358,-500.0,0.00024931,2]
[357435506,1744066269368,-3830.55,0.00024931,2]
[357435507,1744066269378,-538.22,0.00024931,2]
[357435509,1744066269388,-1744.2,0.00024931,2]
[357435511,1744066269398,-1489.78,0.00024931,2]
[357435512,1744066269407,-500.0,0.00024931,2]
[357435514,1744066269417,-1219.67,0.00024931,2]
[357435516,1744066269427,-514.53,0.00024931,2]
[357435518,1744066269436,-500.0,0.00024931,2]
[357435519,1744066269446,-1336.49,0.00024931,2]
[357435521,1744066269456,-1384.16,0.00024931,2]
[357435523,1744066269466,-500.0,0.00024931,2]
[357435524,1744066269476,-500.0,0.00024931,2]
[357435526,1744066269485,-553.35,0.00024931,2]
[357435528,1744066269494,-500.0,0.00024931,2]
[357435529,1744066269503,-929.62,0.00024931,2]
[357435531,1744066269513,-500.0,0.00024931,2]
[357435532,1744066269522,-1147.47,0.00024931,2]
[357435534,1744066269532,-500.0,0.00024931,2]
[357435536,1744066269541,-544.01,0.00024931,2]
[357435537,1744066269550,-500.0,0.00024931,2]
[357435539,1744066269560,-500.0,0.00024931,2]
[357435541,1744066269570,-1011.19,0.00024931,2]
[357435543,1744066269580,-500.0,0.00024931,2]
[357435544,1744066269589,-3017.52,0.00024931,2]
[357435546,1744066269599,-500.0,0.00024931,2]
[357435548,1744066269609,-516.66,0.00024931,2]
[357435549,1744066269619,-500.0,0.00024931,2]
[357435551,1744066269628,-952.54,0.00024931,2]
[357435553,1744066269637,-500.0,0.00024931,2]
[357435554,1744066269646,-339.5949324,0.00024931,2]
[357435556,1744066269655,-1324.37,0.00024931,2]
[357435558,1744066269665,-500.0,0.00024931,2]
[357435559,1744066269675,-692.85,0.00024931,2]
[357435561,1744066269684,-2490.71,0.00024931,2]
[357435563,1744066269693,-500.0,0.00024931,2]
[357435564,1744066269702,-521.13,0.00024931,2]
[357435566,1744066269711,-662.95,0.00024931,2]
[357435568,1744066269721,-10864.56,0.00024931,2]
[357435569,1744066269730,-500.0,0.00024931,2]
[357435571,1744066269739,-3000.0,0.0002494,2]
[357435573,1744066269749,-4168.132543,0.0002495,2]
[357435574,1744066269759,-43409.16310125,0.00025,2]
[357435576,1744066269768,-71639.33539243,0.00025,2]
[357435578,1744066269778,-252.3801,0.00025,7]
[357435579,1744066269788,-252.3801,0.00025,7]
[357435581,1744066269798,-442.522977,0.00025,7]
[357435583,1744066269808,-442.522977,0.00025,7]
[357435584,1744066269818,-202.42188,0.00025,7]
[357435585,1744066269828,-202.42188,0.00025,7]
[357435587,1744066269837,-151.0,0.00025205,2]
[357435588,1744066269847,-151.0,0.00025205,2]
[357435590,1744066269856,-151.0,0.00025205,7]
[357435591,1744066269866,-500.0,0.00025205,2]
[357435592,1744066269875,-594.52,0.00025205,2]
[357435594,1744066269884,-500.0,0.00025205,2]
[357435595,1744066269897,-363.75221626,0.00025205,2]
[357435597,1744066269907,-500.0,0.00025205,2]
[357435599,1744066269917,-266.539413,0.00025205,7]
[357435600,1744066269927,-519.3,0.00025205,2]
[357435602,1744066269938,-811.34,0.00025205,2]
[357435603,1744066269947,-500.0,0.00025205,2]
[357435605,1744066269956,-500.0,0.00025205,2]
[357435606,1744066269967,-500.0,0.00025205,2]
[357435608,1744066269977,-899.11,0.00025205,2]
[357435610,1744066269986,-1456.61,0.00025205,2]
[357435611,1744066269996,-500.0,0.00025205,2]
[357435613,1744066270006,-500.0,0.00025205,2]
[357435615,1744066270016,-500.0,0.00025205,2]
[357435617,1744066270026,-500.0,0.00025205,2]
[357435619,1744066270035,-580.73,0.00025205,2]
[357435621,1744066270045,-500.0,0.00025205,2]
[357435623,1744066270054,-500.0,0.00025205,2]
[357435625,1744066270064,-557.86,0.00025205,2]
[357435627,1744066270074,-820.86,0.00025205,2]
[357435629,1744066270083,-762.58,0.00025205,2]
[357435631,1744066270093,-500.0,0.00025205,2]
[357435633,1744066270102,-500.0,0.00025205,2]
[357435635,1744066270112,-500.0,0.00025205,2]
[357435637,1744066270122,-500.0,0.00025205,2]
[357435639,1744066270132,-500.0,0.00025205,2]
[357435641,1744066270142,-908.71,0.00025205,2]
[357435643,1744066270152,-500.0,0.00025205,2]
[357435644,1744066270162,-500.0,0.00025205,2]
[357435645,1744066270172,-812.4,0.00025205,2]
[357435646,1744066270182,-500.0,0.00025205,2]
[357435647,1744066270192,-583.04,0.00025205,2]
[357435648,1744066270202,-500.0,0.00025205,2]
[357435649,1744066270211,-500.0,0.00025205,2]
[357435650,1744066270221,-946.45,0.00025205,2]
[357435651,1744066270230,-1608.43,0.00025205,2]
[357435652,1744066270240,-529.04,0.00025205,2]
[357435653,1744066270250,-500.0,0.00025205,2]
[357435654,1744066270259,-634.85,0.00025205,2]
[357435655,1744066270269,-1391.69,0.00025205,2]
[357435656,1744066270279,-522.79,0.00025205,2]
[357435657,1744066270290,-714.78,0.00025205,2]
[357435658,1744066270300,-629.19183519,0.00025205,2]
[357435659,1744066270310,-1322.93,0.00025205,2]
[357435660,1744066270320,-526.52,0.00025205,2]
[357435661,1744066270330,-151.0,0.00025205,7]
[357435662,1744066270340,-1003.01,0.00025205,2]
[357435663,1744066270349,-1097.68,0.00025205,2]
[357435664,1744066270359,-653.61,0.00025205,2]
[357435665,1744066270369,-1590.53,0.00025205,2]
[357435666,1744066270379,-683.97,0.00025205,2]
[357435667,1744066270388,-500.0,0.00025205,2]
[357435668,1744066270398,-500.0,0.00025205,2]
[357435669,1744066270409,-547.11,0.00025205,2]
[357435670,1744066270418,-500.0,0.00025205,2]
[357435671,1744066270428,-290.742792,0.00025205,7]
[357435672,1744066270438,-500.0,0.00025205,2]
[357435673,1744066270447,-290.742792,0.00025205,7]
[357435674,1744066270458,-500.0,0.00025205,2]
[357435675,1744066270468,-1552.55,0.00025205,2]
[357435676,1744066270477,-569.53,0.00025205,2]
[357435677,1744066270487,-500.0,0.00025205,2]
[357435678,1744066270497,-500.0,0.00025205,2]
[357435679,1744066270508,-2143.85,0.00025205,2]
[357435680,1744066270518,-672.03,0.00025205,2]
[357435681,1744066270527,-1176.29,0.00025205,2]
[357435682,1744066270538,-500.0,0.00025205,2]
[357435683,1744066270548,-532.09,0.00025205,2]
[357435684,1744066270558,-500.0,0.00025205,2]
[357435685,1744066270569,-500.0,0.00025205,2]
[357435686,1744066270579,-831.19,0.00025205,2]
[357435687,1744066270589,-500.0,0.00025205,2]
[357435688,1744066270599,-500.0,0.00025205,2]
[357435689,1744066270609,-1769.76,0.00025205,2]
[357435690,1744066270619,-500.0,0.00025205,2]
[357435691,1744066270629,-204.98038133,0.00025205,2]
[357435692,1744066270639,-539.61,0.00025205,2]
[357435693,1744066270649,-1062.71,0.00025205,2]
[357435694,1744066270659,-582.3,0.00025205,2]
[357435695,1744066270669,-500.0,0.00025205,2]
[357435696,1744066270679,-500.0,0.00025205,2]
[357435697,1744066270688,-968.29,0.00025205,2]
[357435698,1744066270698,-478.00299089,0.00025205,2]
[357435699,1744066270708,-564.44,0.00025205,2]
[357435700,1744066270717,-500.0,0.00025205,2]
[357435701,1744066270727,-500.0,0.00025205,2]
[357435702,1744066270737,-1613.95,0.00025205,2]
[357435703,1744066270748,-2461.22,0.00025205,2]
[357435705,1744066270758,-500.0,0.00025205,2]
[357435706,1744066270768,-873.55,0.00025205,2]
[357435707,1744066270778,-2674.77,0.00025205,2]
[357435708,1744066270788,-500.0,0.00025205,2]
[357435710,1744066270798,-631.6,0.00025205,2]
[357435711,1744066270808,-1394.78,0.00025205,2]
[357435712,1744066270819,-500.0,0.00025205,2]
[357435714,1744066270829,-500.0,0.00025205,2]
[357435715,1744066270839,-671.63,0.00025205,2]
[357435717,1744066270850,-500.0,0.00025205,2]
[357435719,1744066270860,-500.0,0.00025205,2]
[357435721,1744066270870,-522.49,0.00025205,2]
[357435723,1744066270880,-1447.86,0.00025205,2]
[357435725,1744066270891,-3581.51,0.00025205,2]
[357435727,1744066270906,-500.0,0.00025205,2]
[357435729,1744066270917,-307.07026336,0.00025205,2]
[357435731,1744066270927,-500.0,0.00025205,2]
[357435733,1744066270937,-2777.14,0.00025205,2]
[357435735,1744066270947,-1349.66,0.00025205,2]
[357435737,1744066270956,-1293.9,0.00025205,2]
[357435739,1744066270966,-6741.73,0.00025205,2]
[357435741,1744066270977,-2029.31,0.00025205,2]
[357435743,1744066270987,-576.67,0.00025205,2]
[357435745,1744066270998,-1982.66,0.00025205,2]
[357435748,1744066271008,-500.0,0.00025205,2]
[357435750,1744066271019,-537.39,0.00025205,2]
[357435752,1744066271029,-517.13835951,0.00025205,2]
[357435754,1744066271039,-500.0,0.00025205,2]
[357435756,1744066271049,-500.0,0.00025205,2]
[357435758,1744066271059,-509.12,0.00025205,2]
[357435760,1744066271069,-454.01450457,0.00025205,2]
[357435762,1744066271079,-500.0,0.00025205,2]
[357435764,1744066271088,-2790.26,0.00025205,2]
[357435766,1744066271098,-375.45586406,0.00025205,2]
[357435768,1744066271108,-623.33,0.00025205,2]
[357435770,1744066271117,-500.0,0.00025205,2]
[357435772,1744066271127,-500.0,0.00025205,2]
[357435773,1744066271137,-957.01,0.00025205,2]
[357435776,1744066271147,-500.0,0.00025205,2]
[357435778,1744066271156,-1926.98,0.00025205,2]
[357435780,1744066271166,-2184.29,0.00025205,2]
[357435782,1744066271176,-500.0,0.00025205,2]
[357435784,1744066271185,-2175.04,0.00025205,2]
[357435786,1744066271195,-756.45,0.00025205,2]
[357435788,1744066271205,-500.0,0.00025205,2]
[357435790,1744066271214,-3830.55,0.00025205,2]
[357435792,1744066271224,-538.22,0.00025205,2]
[357435794,1744066271234,-1744.2,0.00025205,2]
[357435796,1744066271243,-1489.78,0.00025205,2]
[357435798,1744066271253,-500.0,0.00025205,2]
[357435800,1744066271263,-1219.67,0.00025205,2]
[357435802,1744066271273,-514.53,0.00025205,2]
[357435804,1744066271283,-500.0,0.00025205,2]
[357435806,1744066271293,-1336.49,0.00025205,2]
[357435808,1744066271303,-1384.16,0.00025205,2]
[357435810,1744066271313,-500.0,0.00025205,2]
[357435812,1744066271323,-500.0,0.00025205,2]
[357435814,1744066271333,-553.35,0.00025205,2]
[357435816,1744066271343,-500.0,0.00025205,2]
[357435818,1744066271352,-929.62,0.00025205,2]
[357435820,1744066271362,-500.0,0.00025205,2]
[357435822,1744066271371,-1147.47,0.00025205,2]
[357435824,1744066271381,-500.0,0.00025205,2]
[357435826,1744066271391,-544.01,0.00025205,2]
[357435828,1744066271400,-500.0,0.00025205,2]
[357435830,1744066271410,-500.0,0.00025205,2]
[357435832,1744066271420,-1011.19,0.00025205,2]
[357435834,1744066271430,-500.0,0.00025205,2]
[357435836,1744066271440,-3017.52,0.00025205,2]
[357435838,1744066271451,-500.0,0.00025205,2]
[357435840,1744066271461,-516.66,0.00025205,2]
[357435842,1744066271470,-500.0,0.00025205,2]
[357435844,1744066271481,-952.54,0.00025205,2]
[357435846,1744066271490,-500.0,0.00025205,2]
[357435848,1744066271500,-1324.37,0.00025205,2]
[357435850,1744066271509,-500.0,0.00025205,2]
[357435852,1744066271520,-692.85,0.00025205,2]
[357435854,1744066271530,-2490.71,0.00025205,2]
[357435857,1744066271540,-500.0,0.00025205,2]
[357435858,1744066271550,-521.13,0.00025205,2]
[357435860,1744066271560,-662.95,0.00025205,2]
[357435863,1744066271570,-10864.56,0.00025205,2]
[357435865,1744066271580,-500.0,0.00025205,2]
[357435867,1744066271590,-587.0,0.0002543,2]
[357435869,1744066271600,-160.0,0.00025479,2]
[357435871,1744066271610,-255.55815088,0.00025479,2]
[357435873,1744066271620,-594.52,0.00025479,2]
[357435875,1744066271630,-500.0,0.00025479,2]
[357435877,1744066271640,-500.0,0.00025479,2]
[357435879,1744066271650,-519.3,0.00025479,2]
[357435881,1744066271661,-811.34,0.00025479,2]
[357435883,1744066271671,-183.57973857,0.00025479,2]
[357435885,1744066271682,-500.0,0.00025479,2]
[357435887,1744066271692,-500.0,0.00025479,2]
[357435889,1744066271702,-899.11,0.00025479,2]
[357435891,1744066271713,-1456.61,0.00025479,2]
[357435893,1744066271723,-500.0,0.00025479,2]
[357435895,1744066271733,-500.0,0.00025479,2]
[357435897,1744066271744,-500.0,0.00025479,2]
[357435899,1744066271755,-500.0,0.00025479,2]
[357435901,1744066271765,-580.73,0.00025479,2]
[357435903,1744066271777,-500.0,0.00025479,2]
[357435905,1744066271787,-500.0,0.00025479,2]
[357435907,1744066271798,-557.86,0.00025479,2]
[357435908,1744066271808,-820.86,0.00025479,2]
[357435910,1744066271818,-762.58,0.00025479,2]
[357435912,1744066271828,-500.0,0.00025479,2]
[357435914,1744066271838,-500.0,0.00025479,2]
[357435916,1744066271849,-500.0,0.00025479,2]
[357435918,1744066271859,-500.0,0.00025479,2]
[357435920,1744066271869,-500.0,0.00025479,2]
[357435922,1744066271879,-908.71,0.00025479,2]
[357435924,1744066271889,-500.0,0.00025479,2]
[357435926,1744066271903,-500.0,0.00025479,2]
[357435928,1744066271914,-812.4,0.00025479,2]
[357435930,1744066271924,-252.3801,0.00025479,7]
[357435932,1744066271935,-252.3801,0.00025479,7]
[357435934,1744066271945,-500.0,0.00025479,2]
[357435936,1744066271956,-583.04,0.00025479,2]
[357435938,1744066271967,-500.0,0.00025479,2]
[357435940,1744066271978,-500.0,0.00025479,2]
[357435942,1744066271989,-946.45,0.00025479,2]
[357435944,1744066271999,-1608.43,0.00025479,2]
[357435946,1744066272009,-529.04,0.00025479,2]
[357435948,1744066272020,-500.0,0.00025479,2]
[357435950,1744066272031,-634.85,0.00025479,2]
[357435952,1744066272042,-1391.69,0.00025479,2]
[357435954,1744066272054,-522.79,0.00025479,2]
[357435956,1744066272064,-714.78,0.00025479,2]
[357435958,1744066272075,-1322.93,0.00025479,2]
[357435960,1744066272085,-526.52,0.00025479,2]
[357435962,1744066272095,-151.0,0.00025479,7]
[357435964,1744066272105,-1003.01,0.00025479,2]
[357435966,1744066272116,-442.522977,0.00025479,7]
[357435968,1744066272127,-442.522977,0.00025479,7]
[357435970,1744066272137,-1097.68,0.00025479,2]
[357435972,1744066272147,-653.61,0.00025479,2]
[357435974,1744066272158,-1590.53,0.00025479,2]
[357435976,1744066272168,-683.97,0.00025479,2]
[357435978,1744066272178,-500.0,0.00025479,2]
[357435999,1744066272189,-500.0,0.00025479,2]
[357436001,1744066272407,-547.11,0.00025479,2]
[357436003,1744066272418,-500.0,0.00025479,2]
[357436005,1744066272427,-290.742792,0.00025479,7]
[357436007,1744066272438,-500.0,0.00025479,2]
[357436009,1744066272448,-290.742792,0.00025479,7]
[357436011,1744066272459,-500.0,0.00025479,2]
[357436013,1744066272469,-1552.55,0.00025479,2]
[357436015,1744066272480,-569.53,0.00025479,2]
[357436017,1744066272490,-299.48529541,0.00025479,2]
[357436019,1744066272500,-500.0,0.00025479,2]
[357436021,1744066272510,-2143.85,0.00025479,2]
[357436023,1744066272519,-672.03,0.00025479,2]
[357436025,1744066272531,-1176.29,0.00025479,2]
[357436027,1744066272541,-371.37147223,0.00025479,2]
[357436029,1744066272551,-532.09,0.00025479,2]
[357436031,1744066272562,-500.0,0.00025479,2]
[357436033,1744066272572,-194.25223658,0.00025479,2]
[357436035,1744066272582,-831.19,0.00025479,2]
[357436037,1744066272592,-500.0,0.00025479,2]
[357436039,1744066272603,-500.0,0.00025479,2]
[357436041,1744066272613,-1769.76,0.00025479,2]
[357436043,1744066272623,-500.0,0.00025479,2]
[357436045,1744066272633,-539.61,0.00025479,2]
[357436047,1744066272643,-1062.71,0.00025479,2]
[357436049,1744066272653,-582.3,0.00025479,2]
[357436050,1744066272664,-500.0,0.00025479,2]
[357436052,1744066272673,-500.0,0.00025479,2]
[357436054,1744066272683,-968.29,0.00025479,2]
[357436056,1744066272693,-564.44,0.00025479,2]
[357436058,1744066272704,-500.0,0.00025479,2]
[357436060,1744066272714,-500.0,0.00025479,2]
[357436062,1744066272724,-1613.95,0.00025479,2]
[357436064,1744066272734,-2461.22,0.00025479,2]
[357436066,1744066272744,-500.0,0.00025479,2]
[357436068,1744066272754,-873.55,0.00025479,2]
[357436070,1744066272764,-2674.77,0.00025479,2]
[357436072,1744066272775,-500.0,0.00025479,2]
[357436074,1744066272784,-631.6,0.00025479,2]
[357436076,1744066272795,-1394.78,0.00025479,2]
[357436078,1744066272805,-500.0,0.00025479,2]
[357436079,1744066272814,-500.0,0.00025479,2]
[357436081,1744066272825,-671.63,0.00025479,2]
[357436083,1744066272835,-500.0,0.00025479,2]
[357436085,1744066272847,-500.0,0.00025479,2]
[357436087,1744066272857,-522.49,0.00025479,2]
[357436089,1744066272867,-1447.86,0.00025479,2]
[357436091,1744066272877,-3581.51,0.00025479,2]
[357436093,1744066272887,-500.0,0.00025479,2]
[357436095,1744066272901,-500.0,0.00025479,2]
[357436097,1744066272911,-202.42188,0.00025479,7]
[357436099,1744066272921,-2777.14,0.00025479,2]
[357436101,1744066272931,-1349.66,0.00025479,2]
[357436103,1744066272942,-1293.9,0.00025479,2]
[357436105,1744066272952,-6741.73,0.00025479,2]
[357436107,1744066272961,-202.42188,0.00025479,7]
[357436109,1744066272973,-2029.31,0.00025479,2]
[357436111,1744066272982,-576.67,0.00025479,2]
[357436113,1744066272992,-1982.66,0.00025479,2]
[357436115,1744066273002,-500.0,0.00025479,2]
[357436117,1744066273013,-537.39,0.00025479,2]
[357436119,1744066273023,-500.0,0.00025479,2]
[357436121,1744066273033,-338.29302781,0.00025479,2]
[357436123,1744066273043,-509.12,0.00025479,2]
[357436124,1744066273052,-500.0,0.00025479,2]
[357436126,1744066273062,-2790.26,0.00025479,2]
[357436128,1744066273072,-623.33,0.00025479,2]
[357436130,1744066273082,-500.0,0.00025479,2]
[357436132,1744066273092,-500.0,0.00025479,2]
[357436134,1744066273103,-957.01,0.00025479,2]
[357436136,1744066273113,-500.0,0.00025479,2]
[357436138,1744066273123,-1926.98,0.00025479,2]
[357436140,1744066273133,-2184.29,0.00025479,2]
[357436142,1744066273143,-526.27630408,0.00025479,2]
[357436144,1744066273153,-2175.04,0.00025479,2]
[357436145,1744066273163,-756.45,0.00025479,2]
[357436147,1744066273173,-500.0,0.00025479,2]
[357436149,1744066273183,-3830.55,0.00025479,2]
[357436151,1744066273193,-538.22,0.00025479,2]
[357436153,1744066273203,-1744.2,0.00025479,2]
[357436155,1744066273213,-1489.78,0.00025479,2]
[357436157,1744066273223,-1219.67,0.00025479,2]
[357436159,1744066273233,-500.0,0.00025479,2]
[357436161,1744066273243,-514.53,0.00025479,2]
[357436163,1744066273253,-500.0,0.00025479,2]
[357436165,1744066273263,-1336.49,0.00025479,2]
[357436167,1744066273274,-1384.16,0.00025479,2]
[357436169,1744066273283,-500.0,0.00025479,2]
[357436171,1744066273294,-500.0,0.00025479,2]
[357436173,1744066273304,-553.35,0.00025479,2]
[357436174,1744066273314,-500.0,0.00025479,2]
[357436176,1744066273324,-929.62,0.00025479,2]
[357436178,1744066273333,-500.0,0.00025479,2]
[357436180,1744066273343,-1147.47,0.00025479,2]
[357436182,1744066273353,-500.0,0.00025479,2]
[357436184,1744066273363,-544.01,0.00025479,2]
[357436186,1744066273373,-202.82888636,0.00025479,2]
[357436188,1744066273382,-500.0,0.00025479,2]
[357436190,1744066273393,-1011.19,0.00025479,2]
[357436192,1744066273403,-500.0,0.00025479,2]
[357436194,1744066273414,-3017.52,0.00025479,2]
[357436196,1744066273424,-500.0,0.00025479,2]
[357436198,1744066273434,-516.66,0.00025479,2]
[357436200,1744066273444,-500.0,0.00025479,2]
[357436202,1744066273454,-952.54,0.00025479,2]
[357436203,1744066273463,-500.0,0.00025479,2]
[357436205,1744066273474,-1324.37,0.00025479,2]
[357436207,1744066273484,-500.0,0.00025479,2]
[357436209,1744066273494,-692.85,0.00025479,2]
[357436211,1744066273503,-2490.71,0.00025479,2]
[357436213,1744066273513,-500.0,0.00025479,2]
[357436215,1744066273522,-521.13,0.00025479,2]
[357436217,1744066273532,-662.95,0.00025479,2]
[357436219,1744066273543,-10864.56,0.00025479,2]
[357436221,1744066273553,-500.0,0.00025479,2]
[357436223,1744066273564,-160.0,0.00025481,2]
[357436225,1744066273574,-587.0,0.0002553,2]
[357436227,1744066273584,-223.0315306,0.00025711,2]
[357436229,1744066273594,-12527.9349248,0.00025748,2]
[357436231,1744066273603,-151.0,0.00025753,2]
[357436233,1744066273614,-242.11421,0.00025753,2]
[357436235,1744066273623,-151.0,0.00025753,7]
[357436237,1744066273633,-594.52,0.00025753,2]
[357436239,1744066273643,-500.0,0.00025753,2]
[357436241,1744066273653,-500.0,0.00025753,2]
[357436243,1744066273663,-519.3,0.00025753,2]
[357436245,1744066273673,-811.34,0.00025753,2]
[357436246,1744066273684,-500.0,0.00025753,2]
[357436248,1744066273694,-500.0,0.00025753,2]
[357436250,1744066273704,-899.11,0.00025753,2]
[357436252,1744066273715,-1456.61,0.00025753,2]
[357436255,1744066273726,-500.0,0.00025753,2]
[357436256,1744066273736,-500.0,0.00025753,2]
[357436258,1744066273746,-500.0,0.00025753,2]
[357436260,1744066273755,-500.0,0.00025753,2]
[357436263,1744066273778,-580.73,0.00025753,2]
[357436265,1744066273789,-500.0,0.00025753,2]
[357436267,1744066273799,-500.0,0.00025753,2]
[357436269,1744066273810,-557.86,0.00025753,2]
[357436272,1744066273820,-820.86,0.00025753,2]
[357436273,1744066273831,-762.58,0.00025753,2]
[357436275,1744066273841,-500.0,0.00025753,2]
[357436277,1744066273852,-500.0,0.00025753,2]
[357436279,1744066273863,-500.0,0.00025753,2]
[357436281,1744066273875,-620.05993684,0.00025753,2]
[357436283,1744066273885,-500.0,0.00025753,2]
[357436285,1744066273899,-908.71,0.00025753,2]
[357436287,1744066273910,-500.0,0.00025753,2]
[357436289,1744066273920,-292.51490645,0.00025753,2]
[357436291,1744066273930,-812.4,0.00025753,2]
[357436293,1744066273942,-500.0,0.00025753,2]
[357436295,1744066273953,-583.04,0.00025753,2]
[357436297,1744066273963,-500.0,0.00025753,2]
[357436299,1744066273975,-500.0,0.00025753,2]
[357436302,1744066273987,-946.45,0.00025753,2]
[357436304,1744066273997,-1608.43,0.00025753,2]
[357436305,1744066274007,-529.04,0.00025753,2]
[357436307,1744066274018,-600.257522,0.00025753,2]
[357436309,1744066274028,-634.85,0.00025753,2]
[357436311,1744066274039,-1391.69,0.00025753,2]
[357436313,1744066274049,-522.79,0.00025753,2]
[357436315,1744066274061,-714.78,0.00025753,2]
[357436317,1744066274071,-1322.93,0.00025753,2]